[Event "Titled Tuesday Blitz February 07 Early 2023"]
[White "Arenas, David"]
[Black "Andreassen, Lars"]
[WhiteFideId "4403177"]
[BlackFideId "1504878"]
[WhiteElo "2426"]
[BlackElo "2168"]
[Result "1/2-1/2"]
[Round "02"]
[TimeControl "180+2"]
[Date "2023.02.07"]
[WhiteClock "0:00:18"]
[BlackClock "0:00:48"]

1. e4 {[%clk 0:03:00]}  d5 {[%clk 0:02:58]} 2. exd5 {[%clk 0:03:00]}  Nf6 {[%clk 0:02:59]} 3. d4 {[%clk 0:02:59]}  Bg4 {[%clk 0:02:59]} 4. Nf3 {[%clk 0:02:58]}  Qxd5 {[%clk 0:02:58]} 5. Be2 {[%clk 0:02:57]}  e6 {[%clk 0:02:58]} 6. Be3 {[%clk 0:02:57]}  Bd6 {[%clk 0:02:58]} 7. c4 {[%clk 0:02:51]}  Qf5 {[%clk 0:02:54]} 8. Nc3 {[%clk 0:02:47]}  c6 {[%clk 0:02:49]} 9. h3 {[%clk 0:02:45]}  Bxf3 {[%clk 0:02:48]} 10. Bxf3 {[%clk 0:02:44]}  O-O {[%clk 0:02:48]} 11. O-O {[%clk 0:02:43]}  Nbd7 {[%clk 0:02:47]} 12. Qb3 {[%clk 0:02:34]}  Rab8 {[%clk 0:02:44]} 13. Rfd1 {[%clk 0:02:29]}  h6 {[%clk 0:02:39]} 14. Rac1 {[%clk 0:02:27]}  Bf4 {[%clk 0:02:37]} 15. Qc2 {[%clk 0:02:10]}  Qxc2 {[%clk 0:01:45]} 16. Rxc2 {[%clk 0:02:08]}  Bxe3 {[%clk 0:01:45]} 17. fxe3 {[%clk 0:02:09]}  Rfd8 {[%clk 0:01:41]} 18. b4 {[%clk 0:02:03]}  Nb6 {[%clk 0:01:38]} 19. Ne2 {[%clk 0:02:02]}  Rd7 {[%clk 0:01:36]} 20. e4 {[%clk 0:01:52]}  Rbd8 {[%clk 0:01:35]} 21. e5 {[%clk 0:01:47]}  Nh7 {[%clk 0:01:32]} 22. Kf2 {[%clk 0:01:42]}  Ng5 {[%clk 0:01:32]} 23. Ke3 {[%clk 0:01:39]}  Nxf3 {[%clk 0:01:32]} 24. gxf3 {[%clk 0:01:40]}  Na4 {[%clk 0:01:21]} 25. Rg1 {[%clk 0:01:36]}  Kh7 {[%clk 0:01:20]} 26. Rg4 {[%clk 0:01:28]}  b5 {[%clk 0:01:18]} 27. cxb5 {[%clk 0:01:09]}  cxb5 {[%clk 0:01:17]} 28. Rc6 {[%clk 0:00:57]}  Nb6 {[%clk 0:01:16]} 29. Nc3 {[%clk 0:00:56]}  Nc4+ {[%clk 0:01:12]} 30. Rxc4 {[%clk 0:00:48]}  bxc4 {[%clk 0:01:12]} 31. a4 {[%clk 0:00:48]}  a6 {[%clk 0:01:12]} 32. Rh4 {[%clk 0:00:37]}  g5 {[%clk 0:01:12]} 33. Re4 {[%clk 0:00:36]}  Rb7 {[%clk 0:01:12]} 34. Na2 {[%clk 0:00:36]}  Rdb8 {[%clk 0:01:10]} 35. Kd2 {[%clk 0:00:35]}  Rxb4 {[%clk 0:01:10]} 36. Nxb4 {[%clk 0:00:34]}  Rxb4 {[%clk 0:01:11]} 37. a5 {[%clk 0:00:24]}  Ra4 {[%clk 0:01:11]} 38. Kc3 {[%clk 0:00:24]}  Rxa5 {[%clk 0:01:09]} 39. Kxc4 {[%clk 0:00:24]}  Ra3 {[%clk 0:01:10]} 40. f4 {[%clk 0:00:23]}  gxf4 {[%clk 0:01:09]} 41. Rxf4 {[%clk 0:00:22]}  Kg6 {[%clk 0:01:09]} 42. h4 {[%clk 0:00:23]}  h5 {[%clk 0:01:09]} 43. Rf6+ {[%clk 0:00:21]}  Kg7 {[%clk 0:01:08]} 44. Rf1 {[%clk 0:00:19]}  a5 {[%clk 0:01:08]} 45. Rg1+ {[%clk 0:00:18]}  Kh7 {[%clk 0:01:07]} 46. Rf1 {[%clk 0:00:18]}  Kg7 {[%clk 0:01:07]} 47. Rg1+ {[%clk 0:00:18]}  Kh7 {[%clk 0:01:04]} 48. Rf1 {[%clk 0:00:18]}  Kg6 {[%clk 0:01:02]} 49. Rg1+ {[%clk 0:00:18]}  Kh6 {[%clk 0:01:00]} 50. Rf1 {[%clk 0:00:18]}  Ra4+ {[%clk 0:00:55]} 51. Kc5 {[%clk 0:00:17]}  Kg6 {[%clk 0:00:54]} 52. Rg1+ {[%clk 0:00:17]}  Kh6 {[%clk 0:00:54]} 53. Rf1 {[%clk 0:00:17]}  Kg6 {[%clk 0:00:47]} 54. Rg1+ {[%clk 0:00:18]}  Kh6 {[%clk 0:00:48]} 55. Rf1 {[%clk 0:00:18]} 1/2-1/2


[Site "https://www.chess.com"]

[Event "Titled Tuesday Blitz February 07 Early 2023"]
[White "Ingebretsen, Jens E"]
[Black "Prieto Aranguren, Alain"]
[WhiteFideId "1522965"]
[BlackFideId "2268906"]
[WhiteElo "2342"]
[BlackElo "2258"]
[Result "0-1"]
[Round "02"]
[TimeControl "180+2"]
[Date "2023.02.07"]
[WhiteClock "0:00:36"]
[BlackClock "0:01:01"]

1. d4 {[%clk 0:03:00]}  g6 {[%clk 0:02:59]} 2. c4 {[%clk 0:02:53]}  Bg7 {[%clk 0:02:59]} 3. Nc3 {[%clk 0:02:53]}  d6 {[%clk 0:02:55]} 4. e4 {[%clk 0:02:52]}  Nc6 {[%clk 0:02:55]} 5. Nf3 {[%clk 0:02:52]}  Bg4 {[%clk 0:02:52]} 6. Be3 {[%clk 0:02:51]}  Bxf3 {[%clk 0:02:40]} 7. gxf3 {[%clk 0:02:48]}  e5 {[%clk 0:02:40]} 8. d5 {[%clk 0:02:44]}  Nd4 {[%clk 0:02:40]} 9. Be2 {[%clk 0:02:43]}  c5 {[%clk 0:02:39]} 10. f4 {[%clk 0:02:36]}  exf4 {[%clk 0:02:17]} 11. Bxf4 {[%clk 0:02:37]}  Ne7 {[%clk 0:02:15]} 12. Qd3 {[%clk 0:02:26]}  O-O {[%clk 0:02:13]} 13. O-O-O {[%clk 0:02:25]}  a6 {[%clk 0:02:13]} 14. h4 {[%clk 0:02:23]}  h5 {[%clk 0:02:10]} 15. Rdg1 {[%clk 0:02:20]}  Kh7 {[%clk 0:01:59]} 16. Bxh5 {[%clk 0:01:58]}  gxh5 {[%clk 0:01:59]} 17. Bxd6 {[%clk 0:01:58]}  Qxd6 {[%clk 0:01:52]} 18. e5+ {[%clk 0:01:57]}  Qg6 {[%clk 0:01:52]} 19. Rxg6 {[%clk 0:01:57]}  fxg6 {[%clk 0:01:43]} 20. d6 {[%clk 0:01:35]}  Nec6 {[%clk 0:01:34]} 21. Ne4 {[%clk 0:00:49]}  Nxe5 {[%clk 0:01:30]} 22. Qg3 {[%clk 0:00:50]}  Ne2+ {[%clk 0:01:22]} 23. Kd2 {[%clk 0:00:49]}  Nxg3 {[%clk 0:01:22]} 24. fxg3 {[%clk 0:00:50]}  Nxc4+ {[%clk 0:01:18]} 25. Kd3 {[%clk 0:00:47]}  Nxb2+ {[%clk 0:01:16]} 26. Kc2 {[%clk 0:00:46]}  Rad8 {[%clk 0:01:13]} 27. Rb1 {[%clk 0:00:39]}  Rfe8 {[%clk 0:01:10]} 28. Ng5+ {[%clk 0:00:36]}  Kg8 {[%clk 0:01:10]} 29. Rf1 {[%clk 0:00:36]}  Rxd6 {[%clk 0:01:09]} 30. Rf7 {[%clk 0:00:36]}  Re2+ {[%clk 0:01:05]} 31. Kb3 {[%clk 0:00:36]}  Rd3# {[%clk 0:01:01]} 0-1


[Site "https://www.chess.com"]

[Event "Titled Tuesday Blitz February 07 Early 2023"]
[White "Jiganchine, Roman"]
[Black "Lehtosaari, Mauri"]
[WhiteFideId "2603667"]
[BlackFideId "501999"]
[WhiteElo "2205"]
[BlackElo "2176"]
[Result "1/2-1/2"]
[Round "02"]
[TimeControl "180+2"]
[Date "2023.02.07"]
[WhiteClock "0:00:30"]
[BlackClock "0:00:16"]

1. e4 {[%clk 0:02:58]}  c5 {[%clk 0:02:57]} 2. Nf3 {[%clk 0:02:58]}  e6 {[%clk 0:02:57]} 3. g3 {[%clk 0:02:56]}  d5 {[%clk 0:02:44]} 4. exd5 {[%clk 0:02:55]}  exd5 {[%clk 0:02:44]} 5. d4 {[%clk 0:02:55]}  Nc6 {[%clk 0:02:42]} 6. Bg2 {[%clk 0:02:55]}  Nf6 {[%clk 0:02:42]} 7. O-O {[%clk 0:02:54]}  Be7 {[%clk 0:02:42]} 8. dxc5 {[%clk 0:02:45]}  O-O {[%clk 0:02:42]} 9. Nc3 {[%clk 0:02:35]}  Bxc5 {[%clk 0:02:39]} 10. a3 {[%clk 0:02:28]}  h6 {[%clk 0:02:36]} 11. b4 {[%clk 0:02:23]}  Bb6 {[%clk 0:02:16]} 12. Bb2 {[%clk 0:02:22]}  a6 {[%clk 0:02:12]} 13. Na4 {[%clk 0:02:21]}  Ba7 {[%clk 0:02:12]} 14. Qd3 {[%clk 0:02:10]}  Be6 {[%clk 0:02:07]} 15. Rad1 {[%clk 0:02:07]}  Rc8 {[%clk 0:02:03]} 16. Nc5 {[%clk 0:01:42]}  Bxc5 {[%clk 0:01:58]} 17. bxc5 {[%clk 0:01:43]}  Qa5 {[%clk 0:01:43]} 18. Bxf6 {[%clk 0:01:41]}  gxf6 {[%clk 0:01:44]} 19. Rfe1 {[%clk 0:01:26]}  Rfe8 {[%clk 0:01:23]} 20. Rxe6 {[%clk 0:01:14]}  Rxe6 {[%clk 0:01:23]} 21. Bh3 {[%clk 0:01:14]}  Rce8 {[%clk 0:01:11]} 22. Qxd5 {[%clk 0:01:14]}  Re2 {[%clk 0:00:49]} 23. Qh5 {[%clk 0:00:54]}  Kg7 {[%clk 0:00:18]} 24. Nh4 {[%clk 0:00:50]}  R8e5 {[%clk 0:00:15]} 25. Nf5+ {[%clk 0:00:37]}  Rxf5 {[%clk 0:00:16]} 26. Qxe2 {[%clk 0:00:37]}  Re5 {[%clk 0:00:14]} 27. Qg4+ {[%clk 0:00:34]}  Rg5 {[%clk 0:00:14]} 28. Qe2 {[%clk 0:00:33]}  Qxc5 {[%clk 0:00:14]} 29. Kh1 {[%clk 0:00:30]}  Re5 {[%clk 0:00:14]} 30. Qg4+ {[%clk 0:00:30]}  Rg5 {[%clk 0:00:15]} 31. Qe2 {[%clk 0:00:30]}  Re5 {[%clk 0:00:15]} 32. Qg4+ {[%clk 0:00:30]}  Rg5 {[%clk 0:00:16]} 33. Qe2 {[%clk 0:00:30]} 1/2-1/2


[Site "https://www.chess.com"]

[Event "Titled Tuesday Blitz February 07 Early 2023"]
[White "Decuigniere, Tom"]
[Black "Vifleemskaia, Svetlana"]
[WhiteFideId "26093820"]
[BlackFideId "4129490"]
[WhiteElo "2382"]
[BlackElo "1971"]
[Result "1-0"]
[Round "02"]
[TimeControl "180+2"]
[Date "2023.02.07"]
[WhiteClock "0:00:03"]
[BlackClock "0:00:02"]

1. c4 {[%clk 0:03:00]}  c5 {[%clk 0:02:54]} 2. Nc3 {[%clk 0:03:01]}  Nf6 {[%clk 0:02:51]} 3. g3 {[%clk 0:03:01]}  d5 {[%clk 0:02:51]} 4. cxd5 {[%clk 0:03:01]}  Nxd5 {[%clk 0:02:52]} 5. Bg2 {[%clk 0:03:01]}  Nc7 {[%clk 0:02:52]} 6. d3 {[%clk 0:03:01]}  e5 {[%clk 0:02:49]} 7. Be3 {[%clk 0:03:01]}  Be7 {[%clk 0:02:48]} 8. Rc1 {[%clk 0:03:01]}  Ne6 {[%clk 0:02:34]} 9. Nf3 {[%clk 0:03:00]}  Nc6 {[%clk 0:02:32]} 10. Nd2 {[%clk 0:03:00]}  Bd7 {[%clk 0:02:30]} 11. Nde4 {[%clk 0:02:58]}  b6 {[%clk 0:02:28]} 12. O-O {[%clk 0:02:55]}  O-O {[%clk 0:02:21]} 13. Nd5 {[%clk 0:02:55]}  Ned4 {[%clk 0:02:09]} 14. Nec3 {[%clk 0:02:49]}  Rc8 {[%clk 0:02:06]} 15. a3 {[%clk 0:02:43]}  Bd6 {[%clk 0:02:04]} 16. Ne4 {[%clk 0:02:35]}  Bb8 {[%clk 0:02:03]} 17. b4 {[%clk 0:02:15]}  cxb4 {[%clk 0:01:55]} 18. axb4 {[%clk 0:02:13]}  f5 {[%clk 0:01:55]} 19. Bg5 {[%clk 0:02:03]}  Qe8 {[%clk 0:01:52]} 20. b5 {[%clk 0:02:02]}  Nxb5 {[%clk 0:01:17]} 21. Qb3 {[%clk 0:01:32]}  Nbd4 {[%clk 0:01:03]} 22. Qa2 {[%clk 0:01:23]}  Kh8 {[%clk 0:01:01]} 23. e3 {[%clk 0:01:14]}  fxe4 {[%clk 0:00:56]} 24. exd4 {[%clk 0:01:15]}  exd3 {[%clk 0:00:36]} 25. dxe5 {[%clk 0:01:14]}  Nxe5 {[%clk 0:00:32]} 26. Rxc8 {[%clk 0:01:12]}  Qxc8 {[%clk 0:00:28]} 27. f4 {[%clk 0:01:08]}  Qc5+ {[%clk 0:00:24]} 28. Kh1 {[%clk 0:01:08]}  Ng6 {[%clk 0:00:21]} 29. h4 {[%clk 0:00:58]}  Qc2 {[%clk 0:00:20]} 30. Qa1 {[%clk 0:00:47]}  Rc8 {[%clk 0:00:17]} 31. h5 {[%clk 0:00:46]}  Nf8 {[%clk 0:00:17]} 32. h6 {[%clk 0:00:44]}  Ne6 {[%clk 0:00:16]} 33. f5 {[%clk 0:00:39]}  Qa4 {[%clk 0:00:12]} 34. fxe6 {[%clk 0:00:18]}  Qxa1 {[%clk 0:00:12]} 35. exd7 {[%clk 0:00:18]}  Qxf1+ {[%clk 0:00:10]} 36. Bxf1 {[%clk 0:00:19]}  Rf8 {[%clk 0:00:09]} 37. d8=Q {[%clk 0:00:17]}  Rxd8 {[%clk 0:00:09]} 38. Bxd8 {[%clk 0:00:18]}  Bxg3 {[%clk 0:00:08]} 39. Bxd3 {[%clk 0:00:15]}  gxh6 {[%clk 0:00:08]} 40. Bf6+ {[%clk 0:00:08]}  Kg8 {[%clk 0:00:08]} 41. Kg2 {[%clk 0:00:05]}  Bd6 {[%clk 0:00:07]} 42. Bd4 {[%clk 0:00:04]}  Kf7 {[%clk 0:00:06]} 43. Nc3 {[%clk 0:00:05]}  Ke6 {[%clk 0:00:06]} 44. Bxh7 {[%clk 0:00:05]}  Bc5 {[%clk 0:00:02]} 45. Bg8+ {[%clk 0:00:04]}  Kd6 {[%clk 0:00:01]} 46. Ne4+ {[%clk 0:00:04]}  Kc6 {[%clk 0:00:01]} 47. Nxc5 {[%clk 0:00:04]}  bxc5 {[%clk 0:00:01]} 48. Bc3 {[%clk 0:00:04]}  Kb5 {[%clk 0:00:02]} 49. Kf3 {[%clk 0:00:04]}  a5 {[%clk 0:00:03]} 50. Ke3 {[%clk 0:00:04]}  c4 {[%clk 0:00:03]} 51. Kd4 {[%clk 0:00:04]}  a4 {[%clk 0:00:02]} 52. Bxc4+ {[%clk 0:00:05]}  Kc6 {[%clk 0:00:02]} 53. Bd2 {[%clk 0:00:05]}  h5 {[%clk 0:00:02]} 54. Bg5 {[%clk 0:00:05]}  a3 {[%clk 0:00:02]} 55. Be7 {[%clk 0:00:04]}  a2 {[%clk 0:00:02]} 56. Bxa2 {[%clk 0:00:03]}  Kd7 {[%clk 0:00:02]} 57. Bh4 {[%clk 0:00:03]}  Kc6 {[%clk 0:00:03]} 58. Ke4 {[%clk 0:00:04]}  Kb5 {[%clk 0:00:04]} 59. Bf7 {[%clk 0:00:05]}  Kb4 {[%clk 0:00:03]} 60. Bxh5 {[%clk 0:00:06]}  Ka3 {[%clk 0:00:03]} 61. Bf7 {[%clk 0:00:06]}  Kb4 {[%clk 0:00:03]} 62. Be7+ {[%clk 0:00:07]}  Kb5 {[%clk 0:00:03]} 63. Bd5 {[%clk 0:00:07]}  Kb6 {[%clk 0:00:02]} 64. Bd6 {[%clk 0:00:07]}  Kb5 {[%clk 0:00:03]} 65. Kd4 {[%clk 0:00:08]}  Ka4 {[%clk 0:00:03]} 66. Kc4 {[%clk 0:00:07]}  Ka5 {[%clk 0:00:04]} 67. Bc5 {[%clk 0:00:05]}  Ka4 {[%clk 0:00:03]} 68. Bc6+ {[%clk 0:00:03]}  Ka5 {[%clk 0:00:03]} 69. Be8 {[%clk 0:00:03]}  Ka6 {[%clk 0:00:02]} 70. Bb5+ {[%clk 0:00:03]}  Kb7 {[%clk 0:00:02]} 71. Kd5 {[%clk 0:00:04]}  Kc7 {[%clk 0:00:02]} 72. Bc6 {[%clk 0:00:04]}  Kb8 {[%clk 0:00:02]} 73. Bb6 {[%clk 0:00:04]}  Kc8 {[%clk 0:00:02]} 74. Kd6 {[%clk 0:00:03]}  Kb8 {[%clk 0:00:02]} 75. Be4 {[%clk 0:00:03]} 1-0


[Site "https://www.chess.com"]

[Event "Titled Tuesday Blitz February 07 Early 2023"]
[White "Brilej, Jaka"]
[Black "Chakravarthi Reddy, M"]
[WhiteFideId "14618818"]
[BlackFideId "25009532"]
[WhiteElo "2321"]
[BlackElo "2279"]
[Result "1-0"]
[Round "02"]
[TimeControl "180+2"]
[Date "2023.02.07"]
[WhiteClock "0:00:39"]
[BlackClock "0:00:20"]

1. e4 {[%clk 0:03:00]}  e5 {[%clk 0:02:59]} 2. Nf3 {[%clk 0:03:00]}  Nc6 {[%clk 0:03:00]} 3. d4 {[%clk 0:03:00]}  exd4 {[%clk 0:02:59]} 4. Nxd4 {[%clk 0:03:00]}  Nf6 {[%clk 0:03:00]} 5. Nxc6 {[%clk 0:03:00]}  bxc6 {[%clk 0:03:00]} 6. e5 {[%clk 0:03:01]}  Qe7 {[%clk 0:03:00]} 7. Qe2 {[%clk 0:03:01]}  Nd5 {[%clk 0:03:00]} 8. c4 {[%clk 0:03:02]}  Nb6 {[%clk 0:02:56]} 9. Nc3 {[%clk 0:03:02]}  Ba6 {[%clk 0:02:56]} 10. Qe4 {[%clk 0:03:02]}  O-O-O {[%clk 0:02:54]} 11. c5 {[%clk 0:02:58]}  Bxf1 {[%clk 0:02:39]} 12. cxb6 {[%clk 0:02:58]}  Ba6 {[%clk 0:02:23]} 13. bxa7 {[%clk 0:02:58]}  Kb7 {[%clk 0:02:20]} 14. Be3 {[%clk 0:02:58]}  d5 {[%clk 0:02:07]} 15. exd6 {[%clk 0:02:58]}  Qxe4 {[%clk 0:02:04]} 16. Nxe4 {[%clk 0:02:59]}  cxd6 {[%clk 0:01:39]} 17. O-O-O {[%clk 0:02:50]}  Be7 {[%clk 0:01:24]} 18. Rhe1 {[%clk 0:02:41]}  Rhe8 {[%clk 0:01:21]} 19. Bf4 {[%clk 0:01:27]}  d5 {[%clk 0:01:15]} 20. Ng5 {[%clk 0:01:27]}  Bxg5 {[%clk 0:01:05]} 21. Bxg5 {[%clk 0:01:28]}  f6 {[%clk 0:01:06]} 22. Be3 {[%clk 0:01:27]}  d4 {[%clk 0:01:04]} 23. Bf4 {[%clk 0:01:13]}  Kxa7 {[%clk 0:00:57]} 24. Rxe8 {[%clk 0:01:10]}  Rxe8 {[%clk 0:00:58]} 25. Rxd4 {[%clk 0:01:10]}  Re1+ {[%clk 0:00:59]} 26. Kc2 {[%clk 0:01:09]}  Re2+ {[%clk 0:00:57]} 27. Rd2 {[%clk 0:01:07]}  Rxd2+ {[%clk 0:00:54]} 28. Kxd2 {[%clk 0:01:08]}  Bf1 {[%clk 0:00:53]} 29. g3 {[%clk 0:01:07]}  Kb6 {[%clk 0:00:49]} 30. Bd6 {[%clk 0:01:06]}  f5 {[%clk 0:00:47]} 31. Bf8 {[%clk 0:01:02]}  g6 {[%clk 0:00:47]} 32. Ke3 {[%clk 0:01:02]}  Bc4 {[%clk 0:00:47]} 33. a3 {[%clk 0:00:59]}  Kb5 {[%clk 0:00:46]} 34. Kf4 {[%clk 0:00:59]}  Be2 {[%clk 0:00:36]} 35. Kg5 {[%clk 0:00:57]}  Kc4 {[%clk 0:00:37]} 36. Kh6 {[%clk 0:00:55]}  Kd3 {[%clk 0:00:34]} 37. h4 {[%clk 0:00:45]}  Kc2 {[%clk 0:00:26]} 38. Bg7 {[%clk 0:00:45]}  c5 {[%clk 0:00:26]} 39. Kxh7 {[%clk 0:00:45]}  Bh5 {[%clk 0:00:26]} 40. Kh6 {[%clk 0:00:43]}  Kb3 {[%clk 0:00:25]} 41. Kg5 {[%clk 0:00:43]}  c4 {[%clk 0:00:24]} 42. f3 {[%clk 0:00:41]}  Bxf3 {[%clk 0:00:21]} 43. Kxg6 {[%clk 0:00:40]}  Bg4 {[%clk 0:00:20]} 44. h5 {[%clk 0:00:39]} 1-0


[Site "https://www.chess.com"]

[Event "Titled Tuesday Blitz February 07 Early 2023"]
[White "Mostbauer, Maximilian"]
[Black "Kornyukov, Alexey"]
[WhiteFideId "1626680"]
[BlackFideId "4150457"]
[WhiteElo "2167"]
[BlackElo "2452"]
[Result "1/2-1/2"]
[Round "02"]
[TimeControl "180+2"]
[Date "2023.02.07"]
[WhiteClock "0:02:56"]
[BlackClock "0:01:58"]

1. d4 {[%clk 0:03:00]}  d5 {[%clk 0:02:46]} 2. Nf3 {[%clk 0:03:01]}  Nf6 {[%clk 0:02:45]} 3. g3 {[%clk 0:03:02]}  Bg4 {[%clk 0:02:43]} 4. Bg2 {[%clk 0:03:03]}  Nc6 {[%clk 0:02:43]} 5. O-O {[%clk 0:03:03]}  e6 {[%clk 0:02:44]} 6. Ne5 {[%clk 0:03:04]}  Bd6 {[%clk 0:02:42]} 7. Nxc6 {[%clk 0:03:04]}  bxc6 {[%clk 0:02:42]} 8. c4 {[%clk 0:03:04]}  O-O {[%clk 0:02:39]} 9. Nc3 {[%clk 0:03:05]}  dxc4 {[%clk 0:02:33]} 10. Bxc6 {[%clk 0:03:04]}  Bh3 {[%clk 0:02:29]} 11. Bg2 {[%clk 0:03:04]}  Bxg2 {[%clk 0:02:21]} 12. Kxg2 {[%clk 0:03:04]}  Qd7 {[%clk 0:02:07]} 13. e4 {[%clk 0:03:04]}  e5 {[%clk 0:01:59]} 14. dxe5 {[%clk 0:02:56]}  Bxe5 {[%clk 0:01:58]} 15. Qxd7 {[%clk 0:02:57]}  Nxd7 {[%clk 0:01:58]} 16. f4 {[%clk 0:02:58]}  Bxc3 {[%clk 0:01:58]} 17. bxc3 {[%clk 0:02:58]}  Rfe8 {[%clk 0:01:58]} 18. e5 {[%clk 0:02:56]}  f6 {[%clk 0:01:58]} 19. exf6 {[%clk 0:02:57]}  Nxf6 {[%clk 0:01:58]} 20. Ba3 {[%clk 0:02:56]} 1/2-1/2


[Site "https://www.chess.com"]

[Event "Titled Tuesday Blitz February 07 Early 2023"]
[White "Borrmann, Laurenz"]
[Black "JonSnowNW1"]
[WhiteFideId "312187930"]
[WhiteElo "2304"]
[BlackElo "2329"]
[Result "1-0"]
[Round "02"]
[TimeControl "180+2"]
[Date "2023.02.07"]
[WhiteClock "0:00:06"]
[BlackClock "0:00:04"]

1. d4 {[%clk 0:02:27]}  d5 {[%clk 0:02:48]} 2. c4 {[%clk 0:02:22]}  c6 {[%clk 0:02:42]} 3. Nf3 {[%clk 0:02:22]}  Nf6 {[%clk 0:02:40]} 4. Nc3 {[%clk 0:02:19]}  e6 {[%clk 0:02:38]} 5. h4 {[%clk 0:02:15]}  Nbd7 {[%clk 0:02:33]} 6. a4 {[%clk 0:01:56]}  dxc4 {[%clk 0:01:59]} 7. e4 {[%clk 0:01:50]}  Bb4 {[%clk 0:01:40]} 8. Qc2 {[%clk 0:01:48]}  c5 {[%clk 0:01:32]} 9. Be3 {[%clk 0:01:07]}  Ng4 {[%clk 0:01:07]} 10. Bxc4 {[%clk 0:01:03]}  Nxe3 {[%clk 0:01:06]} 11. fxe3 {[%clk 0:01:04]}  cxd4 {[%clk 0:01:03]} 12. exd4 {[%clk 0:00:57]}  Qc7 {[%clk 0:00:54]} 13. Qb3 {[%clk 0:00:50]}  Qg3+ {[%clk 0:00:53]} 14. Kf1 {[%clk 0:00:50]}  Bxc3 {[%clk 0:00:43]} 15. Qxc3 {[%clk 0:00:44]}  Nf6 {[%clk 0:00:42]} 16. Bb5+ {[%clk 0:00:40]}  Bd7 {[%clk 0:00:42]} 17. Bxd7+ {[%clk 0:00:34]}  Nxd7 {[%clk 0:00:41]} 18. Rh3 {[%clk 0:00:35]}  Qf4 {[%clk 0:00:40]} 19. Re1 {[%clk 0:00:33]}  O-O {[%clk 0:00:40]} 20. Kg1 {[%clk 0:00:32]}  Nf6 {[%clk 0:00:38]} 21. Qd3 {[%clk 0:00:28]}  Rac8 {[%clk 0:00:34]} 22. Ne5 {[%clk 0:00:26]}  Rc1 {[%clk 0:00:30]} 23. Re3 {[%clk 0:00:18]}  Rxe1+ {[%clk 0:00:26]} 24. Rxe1 {[%clk 0:00:18]}  Qxh4 {[%clk 0:00:26]} 25. Nf3 {[%clk 0:00:19]}  Qg3 {[%clk 0:00:24]} 26. d5 {[%clk 0:00:17]}  Ng4 {[%clk 0:00:22]} 27. e5 {[%clk 0:00:08]}  exd5 {[%clk 0:00:18]} 28. Qxd5 {[%clk 0:00:07]}  Nf2 {[%clk 0:00:16]} 29. e6 {[%clk 0:00:05]}  Nh3+ {[%clk 0:00:16]} 30. Kh1 {[%clk 0:00:06]}  Nf4 {[%clk 0:00:14]} 31. exf7+ {[%clk 0:00:05]}  Kh8 {[%clk 0:00:13]} 32. Qg5 {[%clk 0:00:05]}  Qxg5 {[%clk 0:00:05]} 33. Nxg5 {[%clk 0:00:06]}  h6 {[%clk 0:00:04]} 34. Re8 {[%clk 0:00:05]}  Ng6 {[%clk 0:00:04]} 35. Ne6 {[%clk 0:00:06]} 1-0


[Site "https://www.chess.com"]

[Event "Titled Tuesday Blitz February 07 Early 2023"]
[White "Levitan, Caleb Levi"]
[Black "Petukhov, Dmitry"]
[WhiteFideId "14332620"]
[BlackFideId "4142748"]
[WhiteElo "2129"]
[BlackElo "2350"]
[Result "1-0"]
[Round "02"]
[TimeControl "180+2"]
[Date "2023.02.07"]
[WhiteClock "0:00:08"]
[BlackClock "0:00:32"]

1. e4 {[%clk 0:03:00]}  c5 {[%clk 0:02:59]} 2. Nf3 {[%clk 0:03:00]}  d6 {[%clk 0:02:59]} 3. d4 {[%clk 0:03:00]}  cxd4 {[%clk 0:03:00]} 4. Nxd4 {[%clk 0:03:01]}  Nf6 {[%clk 0:03:00]} 5. Nc3 {[%clk 0:03:01]}  Nc6 {[%clk 0:03:00]} 6. Bc4 {[%clk 0:02:57]}  e5 {[%clk 0:03:00]} 7. Nde2 {[%clk 0:02:40]}  Be6 {[%clk 0:02:59]} 8. Bb3 {[%clk 0:02:36]}  Be7 {[%clk 0:02:56]} 9. Bg5 {[%clk 0:02:33]}  O-O {[%clk 0:02:42]} 10. Bxf6 {[%clk 0:02:23]}  Bxf6 {[%clk 0:02:34]} 11. O-O {[%clk 0:02:21]}  Nd4 {[%clk 0:02:17]} 12. Nd5 {[%clk 0:02:11]}  Nxb3 {[%clk 0:02:13]} 13. axb3 {[%clk 0:02:10]}  Bg5 {[%clk 0:02:11]} 14. c4 {[%clk 0:01:53]}  f5 {[%clk 0:02:04]} 15. Nec3 {[%clk 0:01:48]}  a6 {[%clk 0:01:45]} 16. Qe2 {[%clk 0:01:31]}  Kh8 {[%clk 0:01:24]} 17. Rad1 {[%clk 0:01:21]}  Rc8 {[%clk 0:01:21]} 18. Qd3 {[%clk 0:00:20]}  Qe8 {[%clk 0:01:16]} 19. Ne3 {[%clk 0:00:10]}  Bxe3 {[%clk 0:01:14]} 20. Qxe3 {[%clk 0:00:10]}  f4 {[%clk 0:01:12]} 21. Qf3 {[%clk 0:00:10]}  Rd8 {[%clk 0:01:10]} 22. h3 {[%clk 0:00:10]}  Qg6 {[%clk 0:01:09]} 23. Nd5 {[%clk 0:00:11]}  h5 {[%clk 0:01:06]} 24. Rd3 {[%clk 0:00:09]}  b5 {[%clk 0:00:47]} 25. Rfd1 {[%clk 0:00:09]}  Rb8 {[%clk 0:00:43]} 26. Ne7 {[%clk 0:00:07]}  Qf7 {[%clk 0:00:41]} 27. Nc6 {[%clk 0:00:07]}  Rbd8 {[%clk 0:00:39]} 28. Rxd6 {[%clk 0:00:07]}  Rxd6 {[%clk 0:00:39]} 29. Rxd6 {[%clk 0:00:08]}  bxc4 {[%clk 0:00:38]} 30. bxc4 {[%clk 0:00:07]}  Bxc4 {[%clk 0:00:39]} 31. Nxe5 {[%clk 0:00:07]}  Qe7 {[%clk 0:00:35]} 32. Qxh5+ {[%clk 0:00:07]}  Kg8 {[%clk 0:00:35]} 33. Nxc4 {[%clk 0:00:05]}  Qxe4 {[%clk 0:00:35]} 34. Qd5+ {[%clk 0:00:05]}  Qxd5 {[%clk 0:00:36]} 35. Rxd5 {[%clk 0:00:06]}  Rc8 {[%clk 0:00:36]} 36. Nd6 {[%clk 0:00:06]}  Rd8 {[%clk 0:00:36]} 37. Rd4 {[%clk 0:00:06]}  f3 {[%clk 0:00:35]} 38. gxf3 {[%clk 0:00:06]}  Kf8 {[%clk 0:00:35]} 39. Nf5 {[%clk 0:00:07]}  Rb8 {[%clk 0:00:35]} 40. Rd2 {[%clk 0:00:07]}  Rb3 {[%clk 0:00:35]} 41. Ne3 {[%clk 0:00:08]}  g6 {[%clk 0:00:36]} 42. Nd5 {[%clk 0:00:08]}  a5 {[%clk 0:00:37]} 43. Kf1 {[%clk 0:00:08]}  a4 {[%clk 0:00:37]} 44. Ke2 {[%clk 0:00:09]}  Rb5 {[%clk 0:00:35]} 45. Nc7 {[%clk 0:00:08]}  Re5+ {[%clk 0:00:34]} 46. Kd3 {[%clk 0:00:08]}  Kg7 {[%clk 0:00:33]} 47. Kd4 {[%clk 0:00:08]}  Rf5 {[%clk 0:00:32]} 48. Ke4 {[%clk 0:00:09]}  Rf7 {[%clk 0:00:32]} 49. Ne6+ {[%clk 0:00:08]}  Kh6 {[%clk 0:00:33]} 50. Rd8 {[%clk 0:00:08]}  g5 {[%clk 0:00:32]} 51. Rh8+ {[%clk 0:00:07]}  Kg6 {[%clk 0:00:32]} 52. Rg8+ {[%clk 0:00:07]}  Kh7 {[%clk 0:00:32]} 53. Nxg5+ {[%clk 0:00:07]}  Kxg8 {[%clk 0:00:31]} 54. Nxf7 {[%clk 0:00:08]}  Kxf7 {[%clk 0:00:32]} 55. Kd5 {[%clk 0:00:08]} 1-0


[Site "https://www.chess.com"]